bitfinex-derivatives/quotes_BTCF0:USTF0_20260111
["timestamp","ask_amount","ask_price","bid_price","bid_amount"]
[1768169692449,0.09616012,90614.0,90596.0,0.104973]
[1768169692644,0.09616012,90614.0,90596.0,0.09392]
[1768169693046,0.09616012,90614.0,90596.0,0.10343583]
[1768169693851,0.01105,90618.0,90596.0,0.19815591]
[1768169694241,0.011051,90610.0,90597.0,0.00951583]
[1768169695045,0.011051,90610.0,90598.0,0.10423591]
[1768169695444,0.011051,90610.0,90598.0,0.09472008]
[1768169695645,0.011051,90610.0,90596.0,0.104973]
[1768169696253,0.011051,90610.0,90596.0,0.011053]
[1768169696655,0.09616012,90610.0,90586.0,0.09472008]
[1768169696851,0.01105,90619.0,90584.0,0.011054]
[1768169696852,0.15229711,90600.0,90584.0,0.011054]
[1768169697153,0.011052,90601.0,90584.0,0.02056983]
[1768169697738,0.09616012,90606.0,90584.0,0.10423591]
[1768169697739,0.011053,90599.0,90584.0,0.10423591]
[1768169698847,0.011053,90599.0,90586.0,0.00951583]
[1768169699446,0.011053,90599.0,90586.0,0.10423591]
[1768169699750,0.011052,90602.0,90587.0,0.10423591]
[1768169699947,0.011052,90602.0,90588.0,0.00951583]
[1768169700653,0.011052,90605.0,90591.0,0.00951583]
[1768169700950,0.09392,90615.0,90592.0,0.09472008]
[1768169701153,0.09392,90621.0,90607.0,0.00951583]
[1768169701354,0.02946696,90620.0,90607.0,0.00951583]
[1768169701657,0.09392,90621.0,90607.0,0.00951583]
[1768169701850,0.09392,90621.0,90608.0,0.011051]
[1768169702154,0.09392,90621.0,90607.0,0.00951583]
[1768169702960,0.01105,90620.0,90607.0,0.00951583]
[1768169705459,0.09392,90621.0,90607.0,0.00951583]
[1768169707663,0.09392,90621.0,90607.0,0.02056783]
[1768169708166,0.09392,90621.0,90607.0,0.00951583]
[1768169708465,0.09392,90621.0,90603.0,0.00906299]
[1768169708666,0.09392,90621.0,90604.0,0.00906299]
[1768169709569,0.09392,90621.0,90606.0,0.00941832]
[1768169710168,0.09392,90621.0,90607.0,0.011052]
[1768169712564,0.09392,90621.0,90610.0,0.16171543]
[1768169712770,0.09392,90621.0,90611.0,0.011051]
[1768169712966,0.1046449,90645.0,90619.0,0.00941832]
[1768169713171,0.011048,90636.0,90623.0,0.00941832]
[1768169717068,0.011048,90636.0,90623.0,0.02046832]
[1768169718671,0.011048,90636.0,90624.0,0.00941832]
[1768169719264,0.011048,90639.0,90624.0,0.00941832]
[1768169719765,0.011048,90637.0,90624.0,0.00941832]
[1768169720664,0.15229711,90640.0,90626.0,0.011049]
[1768169720665,0.16334511,90640.0,90626.0,0.011049]
[1768169720865,0.011048,90637.0,90624.0,0.00941832]
[1768169721377,0.09392,90644.0,90634.0,0.00941832]
[1768169722074,0.09392,90644.0,90631.0,0.09270503]
[1768169722075,0.09392,90644.0,90631.0,0.10212335]
[1768169722468,0.00551605,90645.0,90632.0,0.00941832]
[1768169723167,0.00551605,90645.0,90631.0,0.09270503]
[1768169723368,0.00551605,90645.0,90631.0,0.011049]
[1768169723979,0.011046,90655.0,90641.0,0.02046532]
[1768169724168,0.09912885,90659.0,90641.0,0.00941832]
[1768169724368,0.011046,90656.0,90641.0,0.00941832]
[1768169724679,0.11017385,90659.0,90644.0,0.011047]
[1768169724866,0.011045,90659.0,90645.0,0.00941832]
[1768169725069,0.09912885,90669.0,90651.0,0.00941832]
[1768169725274,0.09912885,90669.0,90656.0,0.011046]
[1768169725863,0.11017285,90669.0,90653.0,0.011046]
[1768169726065,0.09912885,90669.0,90651.0,0.00941832]
[1768169726267,0.09912885,90662.0,90648.0,0.09392]
[1768169726480,0.09912885,90662.0,90649.0,0.011046]
[1768169730474,0.09912885,90662.0,90648.0,0.09392]
[1768169732474,0.011045,90660.0,90648.0,0.09392]
[1768169732775,0.011046,90658.0,90648.0,0.09392]
[1768169732978,0.011045,90661.0,90648.0,0.09392]
[1768169733469,0.011045,90659.0,90648.0,0.09392]
[1768169733892,0.11017385,90662.0,90648.0,0.09392]
[1768169734186,0.09912885,90662.0,90648.0,0.09392]
[1768169734773,0.011045,90665.0,90648.0,0.09392]
[1768169735073,0.011045,90665.0,90648.0,0.10343092]
[1768169735277,0.011044,90668.0,90651.0,0.00951092]
[1768169736381,0.09487168,90669.0,90651.0,0.00951092]
[1768169736577,0.10591568,90669.0,90654.0,0.011046]
[1768169736774,0.1003853,90685.0,90662.0,0.00951092]
[1768169736975,0.1003853,90685.0,90660.0,0.00951092]
[1768169736976,0.09487168,90679.0,90660.0,0.00951092]
[1768169737174,0.011043,90676.0,90663.0,0.011045]
[1768169737481,0.10591468,90679.0,90660.0,0.00951092]
[1768169739079,0.011043,90677.0,90663.0,0.011045]
[1768169739980,0.09487168,90679.0,90663.0,0.011045]
[1768169740186,0.01346918,90678.0,90663.0,0.011045]
[1768169742383,0.011043,90675.0,90661.0,0.00951092]
[1768169743183,0.00242618,90678.0,90665.0,0.00951092]
[1768169743379,0.00242618,90678.0,90667.0,0.00951092]
[1768169743790,0.00242618,90678.0,90668.0,0.011044]
[1768169745394,0.00242618,90678.0,90668.0,0.02055492]
[1768169746082,0.011042,90683.0,90670.0,0.011044]
[1768169747285,0.09388,90684.0,90674.0,0.011043]
[1768169748894,0.09388,90684.0,90672.0,0.011044]
[1768169752192,0.09388,90684.0,90670.0,0.00951092]
[1768169752697,0.09388,90684.0,90667.0,0.00951092]
[1768169753194,0.011043,90681.0,90667.0,0.00951092]
[1768169753398,0.011043,90681.0,90668.0,0.02055492]
[1768169755183,0.104922,90684.0,90670.0,0.011044]
[1768169755588,0.104922,90684.0,90668.0,0.00951092]
[1768169755589,0.104922,90684.0,90672.0,0.011044]
[1768169755900,0.011042,90683.0,90669.0,0.011044]
[1768169756502,0.011043,90680.0,90666.0,0.011044]
[1768169756800,0.011043,90680.0,90666.0,0.02055492]
[1768169758004,0.011043,90679.0,90666.0,0.00951092]
[1768169758500,0.011043,90679.0,90667.0,0.011044]
[1768169759888,0.011043,90681.0,90667.0,0.011044]
[1768169760391,0.18875168,90684.0,90666.0,0.00951092]
[1768169760599,0.011043,90679.0,90666.0,0.00951092]
[1768169760892,0.011043,90679.0,90666.0,0.02055492]
[1768169762400,0.011043,90681.0,90668.0,0.011044]
[1768169762702,0.011043,90679.0,90668.0,0.011044]
[1768169765386,0.18875168,90684.0,90666.0,0.10335092]
[1768169766298,0.011043,90679.0,90666.0,0.11439492]
[1768169766698,0.011043,90679.0,90666.0,0.104884]
[1768169767596,0.011043,90679.0,90667.0,0.00927006]
[1768169770705,0.09135164,90681.0,90663.0,0.00960534]
[1768169770892,0.011044,90673.0,90666.0,0.09384]
[1768169772998,0.011044,90672.0,90666.0,0.09384]
[1768169775013,0.011044,90670.0,90666.0,0.09384]
[1768169775306,0.011045,90664.0,90651.0,0.02065134]
[1768169775516,0.011044,90667.0,90652.0,0.011046]
[1768169775704,0.011044,90667.0,90653.0,0.09384]
[1768169776108,0.011044,90667.0,90653.0,0.11449134]
[1768169776307,0.011044,90670.0,90656.0,0.00960534]
[1768169776916,0.011044,90673.0,90656.0,0.00960534]
[1768169777414,0.09135164,90677.0,90659.0,0.011045]
[1768169777415,0.011044,90672.0,90659.0,0.011045]
[1768169779012,0.011044,90672.0,90656.0,0.02065134]
[1768169779217,0.011044,90672.0,90657.0,0.00960534]
[1768169779714,0.011044,90671.0,90657.0,0.00960534]
[1768169780217,0.011044,90670.0,90657.0,0.00960534]
[1768169780421,0.09135164,90677.0,90657.0,0.00960534]
[1768169780716,0.09135164,90660.0,90647.0,0.09384]
[1768169780907,0.011046,90654.0,90647.0,0.09384]
[1768169781215,0.011046,90657.0,90647.0,0.09384]
[1768169781409,0.011046,90653.0,90642.0,0.10344534]
[1768169781919,0.011046,90655.0,90642.0,0.10344534]
[1768169782619,0.011046,90653.0,90642.0,0.10344534]
[1768169785024,0.09135164,90660.0,90648.0,9.8e-07]
[1768169785314,0.011046,90650.0,90648.0,9.8e-07]
[1768169785814,0.011047,90648.0,90644.0,9.2e-07]
[1768169786115,0.011047,90648.0,90644.0,0.01402899]
[1768169786306,0.011047,90648.0,90641.0,0.09388]
[1768169789211,0.011047,90648.0,90641.0,0.10751792]
[1768169792020,0.011046,90651.0,90641.0,0.10751792]
[1768169794118,0.011046,90651.0,90641.0,0.11693369]
[1768169794420,0.011046,90654.0,90641.0,0.11693369]
[1768169794621,0.011046,90652.0,90642.0,0.00941577]
[1768169800123,0.011046,90655.0,90642.0,0.00941577]
[1768169800321,0.011046,90653.0,90642.0,0.00941577]
[1768169802728,0.011046,90651.0,90641.0,0.10751792]
[1768169805225,0.011046,90651.0,90641.0,0.11693369]
[1768169808426,0.15216605,90651.0,90641.0,0.10751792]
[1768169808831,0.09502533,90658.0,90641.0,0.11856492]
[1768169809032,0.011046,90650.0,90641.0,0.10751792]
[1768169809439,0.011046,90650.0,90641.0,0.01363792]
[1768169809736,0.011046,90650.0,90637.0,0.02046377]
[1768169809938,0.011046,90650.0,90639.0,0.02046377]
[1768169810239,0.011046,90650.0,90639.0,0.03403568]
[1768169810440,0.011046,90655.0,90643.0,0.011047]
[1768169811737,0.09502533,90658.0,90643.0,0.011047]
[1768169812740,0.011046,90654.0,90643.0,0.011047]
[1768169813244,0.011046,90652.0,90641.0,0.02046277]
[1768169814144,0.011046,90652.0,90641.0,0.00941577]
[1768169814548,0.09502533,90658.0,90641.0,0.00941577]
[1768169815547,0.011046,90650.0,90641.0,0.00941577]
[1768169817858,0.011047,90649.0,90641.0,0.00941577]
[1768169820565,0.011047,90647.0,90641.0,0.00941577]
[1768169820953,0.011047,90644.0,90639.0,0.01357191]
[1768169821163,0.011047,90644.0,90637.0,0.10614572]
[1768169821356,0.011047,90646.0,90637.0,0.10614572]
[1768169821555,0.011047,90646.0,90637.0,0.11990337]
[1768169821756,0.011047,90644.0,90637.0,0.11990337]
[1768169822664,0.011047,90646.0,90637.0,0.11990337]
[1768169823056,0.15216605,90651.0,90637.0,0.11990337]
[1768169823261,0.011047,90644.0,90629.0,0.011049]
[1768169823463,0.011048,90641.0,90627.0,0.011049]
[1768169823663,0.011047,90643.0,90629.0,0.011049]
[1768169823865,0.011047,90643.0,90629.0,0.02465542]
[1768169824065,0.011047,90643.0,90630.0,0.011049]
[1768169825162,0.011048,90640.0,90629.0,0.01360642]
[1768169825464,0.011048,90636.0,90625.0,0.09939727]
[1768169825667,0.011048,90639.0,90625.0,0.09939727]
[1768169825854,0.011048,90637.0,90625.0,0.11267825]
[1768169826054,0.011048,90637.0,90625.0,0.01879825]
[1768169826266,0.011048,90637.0,90625.0,0.02811812]
[1768169828669,0.16321405,90640.0,90626.0,0.011049]
[1768169828869,0.011048,90638.0,90626.0,0.011049]
[1768169829266,0.011048,90636.0,90625.0,0.02811812]
[1768169830465,0.15216605,90640.0,90625.0,0.02811812]
[1768169830466,0.011048,90635.0,90625.0,0.02811812]
[1768169830768,0.011048,90634.0,90625.0,0.02811812]
[1768169832553,0.011049,90630.0,90625.0,0.01879825]
[1768169832768,0.15216605,90635.0,90625.0,2.5e-07]
[1768169832958,0.01105,90624.0,90618.0,0.09630779]
[1768169833158,0.01105,90624.0,90612.0,0.1169105]
[1768169833360,0.25023663,90630.0,90612.0,0.1169105]
[1768169833559,0.01105,90623.0,90612.0,0.10762837]
[1768169834063,0.01105,90623.0,90613.0,0.00928213]
[1768169834659,0.01105,90621.0,90612.0,0.1169105]
[1768169836072,0.01105,90621.0,90612.0,0.10762837]
[1768169836968,0.25023663,90630.0,90612.0,0.01374837]
[1768169837271,0.01105,90620.0,90610.0,0.00928213]
[1768169837670,0.01105,90620.0,90610.0,0.02294453]
[1768169837870,0.01105,90618.0,90610.0,0.02294453]
[1768169838173,0.01105,90618.0,90610.0,0.0136624]
[1768169838474,0.09807058,90626.0,90609.0,9.018e-05]
[1768169838475,0.011051,90616.0,90609.0,9.018e-05]
[1768169840875,0.09807058,90612.0,90596.0,0.09388]
[1768169841068,0.09807058,90612.0,90580.0,0.13856009]
[1768169841069,0.15216605,90610.0,90598.0,0.00928213]
[1768169841266,0.011051,90611.0,90598.0,0.00928213]
[1768169841461,0.104931,90614.0,90598.0,0.02299661]
[1768169841868,0.104931,90614.0,90599.0,0.00928213]
[1768169843959,0.011051,90612.0,90598.0,0.01371448]
[1768169844161,0.011051,90612.0,90597.0,0.00928213]
[1768169845376,0.011051,90612.0,90597.0,0.02301209]
[1768169847781,0.011051,90612.0,90598.0,0.00928213]
[1768169850579,0.15216605,90620.0,90597.0,0.02478296]
[1768169850580,0.01105,90621.0,90607.0,0.00928213]
[1768169850777,0.011049,90627.0,90611.0,0.00928213]
[1768169850976,0.011049,90627.0,90610.0,0.10522576]
[1768169850977,0.104969,90627.0,90613.0,0.00928213]
[1768169851781,0.09392,90627.0,90613.0,0.00928213]
[1768169852088,0.01105,90619.0,90613.0,0.00928213]
[1768169852889,0.01105,90619.0,90610.0,0.10345689]
[1768169853791,0.01105,90622.0,90611.0,0.00928213]
[1768169856490,0.09392,90627.0,90611.0,0.00928213]
[1768169857377,0.01105,90620.0,90611.0,0.00928213]
[1768169860090,0.01105,90622.0,90611.0,0.00928213]
[1768169860283,0.09392,90627.0,90611.0,0.00928213]
[1768169860985,0.01105,90620.0,90611.0,0.00928213]
[1768169861693,0.01105,90618.0,90611.0,0.00928213]
[1768169861887,0.09392,90627.0,90611.0,0.00928213]
[1768169862094,0.011051,90616.0,90611.0,0.00928213]
[1768169863693,0.011051,90612.0,90603.0,0.09392]
[1768169864084,0.011051,90617.0,90603.0,0.09392]
[1768169864693,0.09844613,90625.0,90603.0,0.09392]
[1768169864895,0.011051,90615.0,90603.0,0.09392]
[1768169865486,0.011051,90614.0,90603.0,0.09392]
[1768169865681,0.011051,90614.0,90604.0,0.00919472]
[1768169866794,0.011051,90610.0,90604.0,0.00919472]
[1768169866998,0.011052,90605.0,90597.0,0.01372996]
[1768169867184,0.011052,90608.0,90598.0,0.09392]
[1768169867491,0.011052,90608.0,90598.0,0.10311472]
[1768169868284,0.011052,90608.0,90599.0,0.00919472]
[1768169869588,0.011052,90607.0,90598.0,0.09392]
[1768169869786,0.011052,90607.0,90597.0,0.01468098]
[1768169869989,0.011052,90607.0,90596.0,0.00919472]
[1768169870500,0.011052,90607.0,90596.0,0.02383671]
[1768169870891,0.011051,90611.0,90597.0,0.00919472]
[1768169872401,0.011051,90611.0,90598.0,0.011053]
[1768169872590,0.011051,90611.0,90598.0,0.02024772]
[1768169872990,0.011051,90612.0,90598.0,0.00919472]
[1768169873195,0.011051,90615.0,90601.0,0.00919472]
[1768169873898,0.01105,90619.0,90604.0,0.011052]
[1768169874693,0.01105,90619.0,90604.0,0.02024672]
[1768169875106,0.09844613,90621.0,90604.0,0.00919472]
[1768169875597,0.01105,90619.0,90605.0,0.011052]
[1768169877695,0.09844613,90621.0,90605.0,0.011052]
[1768169879399,0.01105,90618.0,90604.0,0.00919472]
[1768169879903,0.011051,90616.0,90601.0,0.011052]
[1768169880207,0.011051,90616.0,90601.0,0.02024672]
[1768169882107,0.011051,90614.0,90601.0,0.00919472]
[1768169882400,0.09844613,90618.0,90601.0,0.00919472]
[1768169882596,0.011052,90604.0,90589.0,0.011054]
[1768169882797,0.10949813,90604.0,90590.0,0.09392]
[1768169883198,0.09844613,90604.0,90593.0,0.011053]
[1768169883400,0.011052,90607.0,90593.0,0.104973]
[1768169883606,0.011052,90605.0,90593.0,0.09392]
[1768169884507,0.011052,90605.0,90593.0,0.14703855]
[1768169884710,0.011052,90605.0,90593.0,0.09392]
[1768169885307,0.011052,90608.0,90593.0,0.09392]
[1768169885709,0.011052,90608.0,90594.0,0.011053]
[1768169886704,0.09844613,90610.0,90594.0,0.00967197]
[1768169886906,0.09392,90617.0,90604.0,0.00967197]
[1768169887106,0.01105,90618.0,90605.0,0.011052]
[1768169887309,0.19999402,90621.0,90605.0,0.011052]
[1768169887509,0.01105,90620.0,90605.0,0.011052]
[1768169887804,0.10607402,90620.0,90605.0,0.011052]
[1768169888611,0.10607402,90620.0,90604.0,0.00967197]
[1768169888612,0.09502402,90620.0,90604.0,0.00967197]
[1768169888913,0.09392,90622.0,90606.0,0.00967197]
[1768169889095,0.09502402,90625.0,90606.0,0.00967197]
[1768169889295,0.09502402,90625.0,90605.0,0.09298205]
[1768169889296,0.10607302,90625.0,90611.0,0.011051]
[1768169889499,0.09502402,90625.0,90611.0,0.011051]
[1768169890212,0.09502402,90625.0,90612.0,0.011051]
[1768169890411,0.104969,90628.0,90613.0,0.00945919]
[1768169891011,0.104969,90628.0,90614.0,0.011051]
[1768169891211,0.104969,90628.0,90613.0,0.00945919]
[1768169891511,0.104969,90628.0,90613.0,0.02051019]
[1768169892115,0.20277495,90628.0,90613.0,0.011051]
[1768169895321,0.011049,90626.0,90613.0,0.011051]
[1768169895613,0.19172595,90628.0,90613.0,0.011051]
[1768169895811,0.19172595,90628.0,90595.0,0.104973]
[1768169895812,0.09780595,90627.0,90595.0,0.104973]
[1768169896014,0.09780595,90627.0,90417.0,0.47705217]
[1768169896015,0.09780595,90609.0,90596.0,0.09392]
[1768169896220,0.09780595,90609.0,90592.0,0.011053]
[1768169896405,0.09780595,90609.0,90593.0,0.09392]
[1768169896611,0.10885695,90609.0,90593.0,0.09392]
[1768169897019,0.011052,90606.0,90593.0,0.09392]
[1768169898115,0.09780595,90609.0,90593.0,0.09392]
[1768169898116,0.011052,90604.0,90593.0,0.09392]
[1768169899217,0.09780595,90605.0,90593.0,0.09392]
[1768169902126,0.09780595,90605.0,90591.0,0.00945919]
[1768169904026,0.09780595,90605.0,90591.0,0.02051319]
[1768169904617,0.10885695,90610.0,90595.0,0.011053]
[1768169905925,0.011052,90608.0,90592.0,0.011053]
[1768169906721,0.011052,90608.0,90594.0,0.011053]
[1768169907228,0.10885795,90608.0,90591.0,0.02051219]
[1768169908023,0.10885795,90608.0,90593.0,0.011053]
[1768169909029,0.09780595,90608.0,90596.0,0.011053]
[1768169909226,0.09780595,90608.0,90594.0,0.011053]
[1768169910330,0.10885795,90608.0,90594.0,0.011053]
[1768169912432,0.09780595,90606.0,90592.0,0.011053]
[1768169914033,0.011052,90605.0,90589.0,0.03546281]
[1768169915340,0.011052,90605.0,90591.0,0.011054]
[1768169919249,0.09780595,90606.0,90591.0,0.011054]
[1768169919939,0.09780595,90606.0,90593.0,0.011053]
[1768169921652,0.09780595,90606.0,90589.0,0.02440881]
[1768169921852,0.09780595,90606.0,90594.0,0.011053]
[1768169922853,0.09780595,90606.0,90591.0,0.011053]
[1768169923848,0.011052,90605.0,90591.0,0.011053]
[1768169924651,0.011052,90605.0,90591.0,0.02031051]
[1768169925553,0.011052,90605.0,90591.0,0.11423051]
[1768169926445,0.09780595,90606.0,90591.0,0.10317751]
[1768169926758,0.09780595,90606.0,90593.0,0.011053]
[1768169927944,0.09780595,90606.0,90595.0,0.011053]
[1768169929952,0.09780595,90606.0,90592.0,0.011053]
[1768169930145,0.10885795,90606.0,90592.0,0.011053]
[1768169931155,0.10885795,90606.0,90593.0,0.011053]
[1768169932256,0.09780595,90606.0,90593.0,0.011053]
[1768169934761,0.09780595,90606.0,90594.0,0.011053]
[1768169940864,0.09780595,90606.0,90591.0,0.09392]
[1768169941051,0.09780595,90606.0,90594.0,0.011053]
[1768169941760,0.011052,90604.0,90592.0,0.011053]
[1768169942257,0.10436334,90602.0,90589.0,0.01494962]
[1768169942560,0.10436334,90602.0,90578.0,0.11075396]
[1768169942561,0.10436334,90602.0,90588.0,0.104974]
[1768169943061,0.09331134,90602.0,90591.0,0.011053]
[1768169943466,0.09331134,90602.0,90593.0,0.011053]
[1768169946472,0.09331134,90602.0,90591.0,0.011054]
[1768169947272,0.09331134,90602.0,90593.0,0.011053]
[1768169947567,0.09331134,90602.0,90592.0,0.011053]
[1768169947760,0.09331134,90602.0,90590.0,0.1523227]
[1768169949071,0.09331134,90602.0,90589.0,0.01597074]
[1768169949072,0.10436334,90602.0,90589.0,0.01597074]
[1768169949270,0.10436334,90602.0,90590.0,0.1523227]
[1768169951770,0.09331134,90602.0,90590.0,0.1523227]
[1768169955870,0.011052,90601.0,90590.0,0.1523227]
[1768169956071,0.09331134,90602.0,90590.0,0.1523227]
[1768169956273,0.09331134,90602.0,90591.0,0.011054]
[1768169957471,0.09331134,90602.0,90590.0,0.1523227]
[1768169957773,0.09331134,90602.0,90591.0,0.011054]
[1768169963863,0.09331134,90602.0,90590.0,0.1523227]
[1768169963864,0.09331134,90602.0,90592.0,0.011053]
[1768169964371,0.011052,90606.0,90592.0,0.011053]
[1768169965078,0.10289746,90606.0,90592.0,0.011053]
[1768169966979,0.011052,90605.0,90592.0,0.011053]
[1768169967169,0.011052,90603.0,90590.0,0.1633767]
[1768169970583,0.011052,90603.0,90590.0,0.1523227]
[1768169974186,0.011052,90603.0,90590.0,0.1633767]
[1768169974989,0.011052,90602.0,90590.0,0.1633767]
[1768169975185,0.011052,90602.0,90590.0,0.1523227]
[1768169978288,0.011052,90602.0,90590.0,0.16153794]
[1768169979288,0.011052,90604.0,90590.0,0.17259194]
[1768169980687,0.011052,90604.0,90591.0,0.00921524]
[1768169980881,0.09447442,90611.0,90591.0,0.00921524]
[1768169981582,0.011052,90602.0,90591.0,0.00921524]
[1768169981984,0.001052,90602.0,90592.0,0.09588201]
[1768169982185,0.09447442,90628.0,90611.0,0.02026624]
[1768169982388,0.011049,90627.0,90614.0,0.00921524]
[1768169982580,0.09392,90631.0,90617.0,0.1523227]
[1768169982780,0.09392,90631.0,90620.0,0.1523227]
[1768169982981,0.09392,90631.0,90617.0,0.01105]
[1768169983587,0.09392,90631.0,90619.0,0.01105]
[1768169983788,0.09392,90631.0,90621.0,0.01105]
[1768169984091,0.09392,90631.0,90614.0,0.00921524]
[1768169984092,0.09392,90638.0,90619.0,0.01105]
[1768169984280,0.011048,90634.0,90618.0,0.01105]
[1768169984479,0.10552242,90637.0,90618.0,0.01105]
[1768169984684,0.10552242,90634.0,90617.0,0.09392]
[1768169984888,0.10552342,90632.0,90617.0,0.10497]
[1768169985477,0.09447442,90632.0,90617.0,0.10497]
[1768169986788,0.10552342,90632.0,90617.0,0.10497]
[1768169989398,0.09447442,90632.0,90619.0,0.01105]
[1768169989696,0.104968,90638.0,90622.0,0.00921524]
[1768169991494,0.011048,90636.0,90622.0,0.00921524]
[1768169992289,0.09392,90638.0,90623.0,0.01105]
[1768169993089,0.09392,90638.0,90623.0,0.02026524]
[1768169993289,0.09392,90638.0,90624.0,0.00921524]
[1768169994896,0.011047,90642.0,90628.0,0.00921524]
[1768169997995,0.011048,90639.0,90624.0,0.02026524]
[1768169998996,0.011048,90637.0,90624.0,0.00921524]
[1768169999387,0.09392,90653.0,90636.0,0.00921524]
[1768169999593,0.09392,90653.0,90637.0,0.00921524]
[1768169999793,0.18839442,90660.0,90640.0,0.00921524]
[1768170000400,0.05431166,90656.0,90640.0,0.02026224]
[1768170000798,0.011046,90653.0,90640.0,0.00921524]
[1768170001194,0.011046,90653.0,90639.0,0.011048]
[1768170001800,0.011046,90655.0,90638.0,0.00921524]
[1768170002692,0.09392,90668.0,90657.0,0.00921524]
[1768170002894,0.011043,90675.0,90662.0,0.00921524]
[1768170003102,0.01346918,90678.0,90663.0,0.10313524]
[1768170003401,0.00242618,90678.0,90665.0,0.011044]
[1768170003602,0.09447442,90684.0,90665.0,0.011044]
[1768170003802,0.09447442,90684.0,90669.0,0.011044]
[1768170004014,0.01104,90702.0,90663.0,0.10313524]
[1768170004015,0.09565032,90690.0,90667.0,0.00974497]
[1768170004203,0.09565032,90690.0,90678.0,0.011043]
[1768170004505,0.09565032,90690.0,90680.0,0.011043]
[1768170005102,0.09565032,90690.0,90673.0,0.10362497]
[1768170005405,0.09565032,90690.0,90681.0,0.011043]
[1768170005603,0.09565032,90695.0,90681.0,0.011043]
[1768170005908,0.09565032,90695.0,90680.0,0.011043]
[1768170006601,0.09565032,90695.0,90677.0,0.011043]
[1768170007409,0.09565032,90693.0,90677.0,0.011043]
[1768170007710,0.09565032,90691.0,90673.0,0.09388]
[1768170007898,0.09565032,90691.0,90676.0,0.011043]
[1768170008410,0.09565032,90691.0,90678.0,0.011043]
[1768170008805,0.09565032,90691.0,90667.0,0.02612633]
[1768170009107,0.01104,90700.0,90671.0,0.011044]
[1768170009108,0.09565032,90685.0,90671.0,0.011044]
[1768170010403,0.09565032,90685.0,90672.0,0.09388]
[1768170013908,0.09565032,90685.0,90673.0,0.011044]
[1768170015411,0.09565032,90685.0,90674.0,0.09388]
[1768170020715,0.09565032,90685.0,90673.0,0.011044]
[1768170020914,0.09565032,90685.0,90674.0,0.09384]
[1768170022401,0.011042,90689.0,90674.0,0.09384]
[1768170022601,0.09955051,90684.0,90670.0,0.011044]
[1768170023112,0.09955051,90684.0,90672.0,0.011044]
[1768170024209,0.09955051,90684.0,90669.0,0.011044]
[1768170025208,0.11059251,90684.0,90669.0,0.011044]
[1768170025917,0.011043,90682.0,90668.0,0.011044]
[1768170026108,0.011043,90682.0,90670.0,0.09384]
[1768170026308,0.09955051,90682.0,90667.0,0.01638136]
[1768170026509,0.09955051,90680.0,90666.0,0.011044]
[1768170026816,0.09955051,90680.0,90665.0,0.09384]
[1768170027414,0.09955051,90680.0,90666.0,0.011044]
[1768170027614,0.09955051,90680.0,90666.0,0.02735981]
[1768170028817,0.09955051,90680.0,90668.0,0.011044]
[1768170029426,0.09955051,90680.0,90666.0,0.01631581]
[1768170029427,0.11059351,90680.0,90666.0,0.01631581]
[1768170029723,0.09955051,90680.0,90664.0,0.011045]
[1768170029915,0.09955051,90677.0,90663.0,0.09384]
[1768170030513,0.011043,90676.0,90663.0,0.09384]
[1768170031523,0.09955051,90677.0,90663.0,0.09384]
[1768170031725,0.09955051,90677.0,90663.0,0.12189358]
[1768170034420,0.11059351,90677.0,90663.0,0.11084858]
[1768170035725,0.11059351,90677.0,90664.0,0.011045]
[1768170036627,0.09955051,90677.0,90666.0,0.011044]
[1768170036813,0.09955051,90677.0,90667.0,0.011044]
[1768170037214,0.10724593,90682.0,90668.0,0.011044]
[1768170037414,0.09620293,90682.0,90672.0,0.011044]
[1768170037625,0.00551362,90685.0,90674.0,0.011043]
[1768170038828,0.00551362,90685.0,90676.0,0.011043]
[1768170039330,0.00551362,90685.0,90677.0,0.011043]
[1768170039824,0.00551362,90685.0,90669.0,0.00996041]
[1768170040025,0.00551362,90685.0,90663.0,0.11084858]
[1768170040026,6.2e-07,90685.0,90683.0,0.011042]
[1768170040225,0.09620293,90694.0,90683.0,0.011042]
[1768170040929,0.09620293,90694.0,90685.0,0.011042]
[1768170041227,0.09620293,90694.0,90675.0,0.00996041]
[1768170041228,0.09620293,90704.0,90681.0,0.02100341]
[1768170041424,0.09620293,90702.0,90692.0,0.011041]
[1768170041726,0.02796409,90701.0,90692.0,0.011041]
[1768170041927,0.02796409,90700.0,90692.0,0.011041]
[1768170042120,0.02796409,90700.0,90681.0,0.02100341]
[1768170042121,0.02796409,90699.0,90681.0,0.02100341]
[1768170042326,0.09620293,90702.0,90687.0,0.011042]
[1768170042628,0.09620293,90700.0,90689.0,0.011042]
[1768170042827,0.12416318,90699.0,90689.0,0.011042]
[1768170043026,0.09620293,90699.0,90689.0,0.011042]
[1768170044730,0.09620293,90699.0,90686.0,0.011042]
[1768170044920,0.09620293,90699.0,90687.0,0.011042]
[1768170046029,0.10724293,90699.0,90687.0,0.011042]
[1768170047028,0.011041,90697.0,90684.0,0.011042]
[1768170047631,0.09620293,90699.0,90684.0,0.011042]
[1768170047826,0.011041,90696.0,90683.0,0.011042]
[1768170048432,0.011041,90696.0,90684.0,0.011042]
[1768170048926,0.011041,90698.0,90681.0,0.00996041]
[1768170049122,0.09620293,90699.0,90685.0,0.011042]
[1768170049632,0.011041,90698.0,90685.0,0.011042]
[1768170053641,0.011041,90698.0,90686.0,0.011042]
[1768170053840,0.011041,90696.0,90683.0,0.011042]
[1768170054535,0.09620293,90699.0,90680.0,0.15201606]
[1768170054735,0.09620293,90699.0,90679.0,0.011043]
[1768170054941,0.011041,90694.0,90681.0,0.011042]
[1768170056232,0.011041,90694.0,90678.0,0.00996041]
[1768170056233,0.011041,90694.0,90682.0,0.011042]
[1768170056742,0.011041,90696.0,90682.0,0.011042]
[1768170057042,0.011041,90696.0,90684.0,0.011042]
[1768170059550,0.09384,90703.0,90685.0,0.011042]
[1768170059750,0.15201606,90700.0,90685.0,0.011042]
[1768170060426,0.011041,90699.0,90686.0,0.011042]
[1768170060630,0.10724293,90702.0,90683.0,0.00996041]
[1768170060841,0.01104,90700.0,90687.0,0.011042]
[1768170061141,0.01104,90700.0,90684.0,0.011042]
[1768170061343,0.16305606,90700.0,90684.0,0.011042]
[1768170061743,0.01104,90700.0,90684.0,0.011042]
[1768170062742,0.10724293,90700.0,90684.0,0.011042]